bitfinex-derivatives/quotes_SOLF0:USTF0_20250803
["timestamp","ask_amount","ask_price","bid_price","bid_amount"]
[1754194358736,6.90178267,160.36,160.34,3.29]
[1754194360435,9.65858267,160.36,160.34,3.29]
[1754194360735,3.48,160.35,160.34,3.29]
[1754194361535,6.90178267,160.36,160.34,3.29]
[1754194362838,13.13848267,160.36,160.34,3.29]
[1754194363038,13.13848267,160.36,160.32,3.42178267]
[1754194363039,3.48,160.35,160.32,3.42178267]
[1754194363640,3.48,160.35,160.33,3.29]
[1754194366739,3.48,160.34,160.33,3.29]
[1754194370248,3.48,160.35,160.33,3.29]
[1754194371148,3.48,160.34,160.33,3.29]
[1754194374154,9.7175,160.34,160.33,3.29]
[1754194376261,3.48,160.34,160.33,3.29]
[1754194378058,3.48,160.33,160.31,3.29]
[1754194379456,3.48,160.31,160.3,3.29]
[1754194380051,9.7187,160.31,160.3,3.29]
[1754194380856,9.7187,160.31,160.28,3.42178267]
[1754194380857,9.7187,160.31,160.28,8.67272938]
[1754194381053,3.42178267,160.3,160.28,8.54094671]
[1754194381255,3.48,160.29,160.27,8.54094671]
[1754194381654,6.94178267,160.3,160.28,3.43]
[1754194383160,9.66088267,160.3,160.28,3.43]
[1754194383352,13.18088267,160.3,160.28,3.43]
[1754194384767,6.94178267,160.3,160.28,3.43]
[1754194387761,9.7584,160.32,160.28,3.43]
[1754194387963,13.18018267,160.32,160.28,3.43]
[1754194388661,9.7587,160.31,160.28,3.43]
[1754194390264,3.52,160.31,160.29,3.43]
[1754194390764,9.7588,160.31,160.29,3.43]
[1754194393564,3.52,160.3,160.29,3.43]
[1754194397364,9.7588,160.31,160.29,3.43]
[1754194403764,9.66008267,160.32,160.29,3.43]
[1754194405171,3.52,160.29,160.26,3.43]
[1754194405574,6.2398,160.28,160.26,3.43]
[1754194406065,9.7598,160.28,160.26,3.43]
[1754194406268,6.2398,160.28,160.26,3.43]
[1754194406468,9.7596,160.29,160.26,3.43]
[1754194406668,3.52,160.29,160.26,3.43]
[1754194407276,9.7601,160.28,160.26,3.43]
[1754194408169,6.2402,160.27,160.26,3.43]
[1754194408474,9.7602,160.27,160.26,3.43]
[1754194411178,9.7607,160.26,160.24,3.43]
[1754194411374,3.42178267,160.26,160.21,8.67272938]
[1754194411574,3.42178267,160.26,160.23,3.42178267]
[1754194411779,3.33,160.27,160.24,3.44]
[1754194411970,3.33,160.27,160.25,3.44]
[1754194412571,6.2406,160.26,160.24,3.44]
[1754194412782,3.33,160.25,160.24,3.44]
[1754194415581,9.5706,160.26,160.24,3.44]
[1754194415880,123.5102,160.27,160.24,3.44]
[1754194416082,2.93300332,160.26,160.24,3.44]
[1754194416270,6.2406,160.26,160.24,3.44]
[1754194416672,3.33,160.25,160.24,3.44]
[1754194416973,9.5706,160.26,160.24,3.44]
[1754194417893,3.33,160.26,160.24,3.44]
[1754194419283,9.5707,160.26,160.24,3.44]
[1754194422388,3.33,160.28,160.24,3.42178267]
[1754194422589,7.46942752,160.27,160.25,3.44]
[1754194422796,117.27,160.29,160.25,3.44]
[1754194423092,113.94,160.29,160.25,3.44]
[1754194423292,3.33,160.28,160.25,3.44]
[1754194423488,113.94,160.29,160.25,3.44]
[1754194423489,117.27,160.29,160.25,3.44]
[1754194423796,6.2402,160.28,160.25,3.44]
[1754194425097,6.2402,160.27,160.26,6.86178267]
[1754194429704,113.94,160.29,160.27,3.44]
[1754194429905,113.94,160.29,160.28,6.86178267]
[1754194430201,120.20166804,160.29,160.28,6.86178267]
[1754194431311,123.5097,160.29,160.28,6.86178267]
[1754194432100,117.27,160.29,160.28,6.86178267]
[1754194432301,113.94,160.29,160.28,6.86178267]
[1754194433001,3.42178267,160.35,160.28,3.42178267]
[1754194433203,10.79574965,160.34,160.32,3.44]
[1754194433405,7.46574965,160.33,160.32,3.44]
[1754194434211,10.79574965,160.33,160.32,3.44]
[1754194434802,10.79594917,160.33,160.32,3.44]
[1754194435101,10.79594917,160.33,160.31,3.42178267]
[1754194435102,3.33,160.32,160.31,6.86178267]
[1754194435309,10.79594917,160.32,160.31,6.86178267]
[1754194437103,3.33,160.31,160.29,3.44]
[1754194437310,6.26178989,160.3,160.29,3.44]
[1754194437506,3.33,160.29,160.27,3.42178267]
[1754194437807,3.33,160.29,160.28,3.44]
[1754194440312,3.33,160.29,160.24,5.25094671]
[1754194440611,3.33,160.29,160.26,3.44]
[1754194441312,3.33,160.28,160.26,3.44]
[1754194442006,9.5699,160.28,160.26,3.44]
[1754194443904,3.26,160.27,160.26,3.44]
[1754194444107,3.26,160.27,160.25,3.24]
[1754194444301,6.2402,160.27,160.25,3.24]
[1754194444508,3.26,160.26,160.25,3.24]
[1754194446210,3.26,160.27,160.25,3.24]
[1754194446415,3.26,160.3,160.24,3.24]
[1754194446708,3.26,160.28,160.24,3.24]
[1754194446918,6.2397,160.29,160.24,3.24]
[1754194447102,9.4997,160.29,160.24,3.24]
[1754194447914,6.2392,160.3,160.25,6.241]
[1754194448115,2.93825753,160.29,160.26,3.24]
[1754194448317,9.4992,160.3,160.26,3.24]
[1754194448710,9.4995,160.29,160.26,3.24]
[1754194449316,3.26,160.28,160.26,3.24]
[1754194451120,3.26,160.29,160.26,3.24]
[1754194452719,9.4995,160.29,160.26,3.24]
[1754194456123,3.26,160.28,160.26,3.24]
[1754194460825,3.26,160.28,160.26,6.66640666]
[1754194461025,3.26,160.28,160.27,3.24]
[1754194462526,9.4998,160.28,160.27,3.24]
[1754194462717,3.26,160.28,160.27,3.24]
[1754194463318,10.80232225,160.28,160.27,3.24]
[1754194464924,10.80232225,160.28,160.24,8.67735337]
[1754194465225,3.26,160.27,160.26,3.24]
[1754194466927,6.2395,160.29,160.26,3.24]
[1754194466928,3.26,160.28,160.26,3.24]
[1754194471829,7.65038691,160.27,160.26,3.24]
[1754194474130,11.13038691,160.27,160.26,3.24]
[1754194484843,11.13038691,160.27,160.25,3.21]
[1754194485039,3.48,160.27,160.25,3.21]
[1754194487146,2.95800856,160.26,160.25,3.21]
[1754194488146,7.666057,160.26,160.25,3.21]
[1754194488749,7.66683918,160.26,160.25,3.21]
[1754194492851,17.38743918,160.26,160.25,3.21]
[1754194493046,3.48,160.25,160.23,3.21]
[1754194493249,11.14683918,160.24,160.23,3.21]
[1754194493542,13.90823918,160.24,160.22,3.21]
[1754194493751,11.14683918,160.23,160.22,3.21]
[1754194494951,6.43879074,160.23,160.22,3.21]
[1754194495147,7.50670951,160.23,160.2,3.42640666]
[1754194495452,6.43879074,160.22,160.21,3.21]
[1754194495751,2.95879074,160.22,160.21,3.21]
[1754194497252,6.2414,160.24,160.21,3.21]
[1754194497458,6.43127989,160.23,160.21,3.21]
[1754194497659,9.7214,160.24,160.21,3.21]
[1754194497852,2.95144048,160.23,160.21,3.21]
[1754194498048,9.7214,160.24,160.21,3.21]
[1754194498253,2.9507669,160.23,160.21,3.21]
[1754194498454,6.2414,160.24,160.21,3.21]
[1754194498655,2.9507669,160.23,160.21,3.21]
[1754194498951,9.7214,160.24,160.21,3.21]
[1754194499154,2.9507669,160.23,160.21,6.63640666]
[1754194499355,9.7218,160.23,160.22,3.21]
[1754194499557,12.67165756,160.23,160.22,3.21]
[1754194500862,6.42985756,160.23,160.22,3.21]
[1754194501948,2.94985756,160.23,160.22,6.63640666]
[1754194502148,3.47,160.27,160.23,3.37]
[1754194502354,7.49150709,160.26,160.25,6.79640666]
[1754194502662,6.2401,160.28,160.27,3.37]
[1754194502862,17.2020453,160.28,160.27,3.37]
[1754194503060,3.47,160.27,160.21,3.37]
[1754194503261,3.47,160.25,160.22,3.37]
[1754194503759,3.42640666,160.26,160.22,3.37]
[1754194503960,2.95048999,160.25,160.24,3.37]
[1754194504862,9.7103,160.27,160.24,3.37]
[1754194505064,7.49226318,160.26,160.24,3.37]
[1754194505270,2.95068785,160.25,160.24,3.37]
[1754194505458,2.95068785,160.26,160.24,3.37]
[1754194505757,2.95068785,160.25,160.24,3.37]
[1754194507763,6.42068785,160.25,160.24,3.37]
[1754194508463,12.66168785,160.25,160.21,3.42640666]
[1754194508669,9.711,160.25,160.24,3.37]
[1754194508862,12.66626336,160.25,160.24,3.37]
[1754194510568,6.42526336,160.25,160.24,3.37]
[1754194510769,2.95526336,160.25,160.24,3.37]
[1754194513674,6.42643804,160.25,160.24,3.37]
[1754194514668,3.47,160.24,160.19,3.42640666]
[1754194514875,3.47,160.22,160.21,3.37]
[1754194516074,9.7122,160.22,160.21,3.37]
[1754194517772,9.7122,160.22,160.18,119.25474135]
[1754194517773,6.2426,160.21,160.18,3.42640666]
[1754194518082,3.47,160.2,160.19,3.37]
[1754194518880,6.2422,160.22,160.19,3.37]
[1754194519077,9.7122,160.22,160.19,3.37]
[1754194519770,9.7126,160.21,160.19,3.37]
[1754194520175,9.7129,160.2,160.19,3.37]
[1754194522677,3.47,160.19,160.15,11.49584671]
[1754194522880,3.47,160.19,160.18,3.37]
[1754194525172,9.7129,160.2,160.18,3.37]
[1754194526176,6.2429,160.2,160.17,3.42640666]
[1754194526380,3.42640666,160.22,160.18,3.37]
[1754194526584,3.47,160.22,160.18,3.37]
[1754194527280,9.7125,160.22,160.18,3.37]
[1754194527479,3.47,160.22,160.18,3.37]
[1754194527885,3.47,160.22,160.2,3.37]
[1754194528391,6.2422,160.22,160.2,3.37]
[1754194529884,9.7122,160.22,160.2,3.37]
[1754194532082,3.25,160.22,160.2,3.37]
[1754194532789,3.25,160.22,160.21,3.4]
[1754194532977,10.74778861,160.22,160.21,3.4]
[1754194534086,16.98998861,160.22,160.21,3.4]
[1754194535587,3.25,160.21,160.2,3.4]
[1754194535784,6.20557376,160.21,160.2,3.4]
[1754194536592,10.7527913,160.21,160.2,3.4]
[1754194537890,7.5027913,160.21,160.2,3.4]
[1754194539294,4.54721754,160.21,160.2,3.4]
[1754194539494,7.50439939,160.21,160.2,3.4]
[1754194540196,3.25,160.25,160.2,3.4]
[1754194540494,10.7567385,160.24,160.22,3.4]
[1754194540686,10.7567385,160.23,160.22,3.4]
[1754194541393,16.9985385,160.23,160.22,3.4]
[1754194542297,10.75689796,160.23,160.22,3.4]
[1754194542496,7.50689796,160.23,160.22,3.4]
[1754194543191,10.75689796,160.23,160.22,3.4]
[1754194543397,7.50689796,160.23,160.22,3.4]
[1754194547502,10.75689796,160.23,160.22,3.4]
[1754194547702,16.99869796,160.23,160.22,3.4]
[1754194549000,10.75689796,160.23,160.22,3.4]
[1754194551505,7.50689796,160.23,160.22,3.4]
[1754194553708,7.51190918,160.23,160.22,3.4]
[1754194555417,7.51248528,160.23,160.22,3.4]
[1754194556218,10.76248528,160.23,160.22,3.4]
[1754194556412,17.00428528,160.23,160.22,3.4]
[1754194556717,12.44918626,160.23,160.22,3.4]
[1754194556915,6.20738626,160.23,160.22,3.4]
[1754194560117,2.95738626,160.23,160.22,3.4]
[1754194561209,6.20738626,160.23,160.22,3.4]
[1754194561411,2.95738626,160.23,160.22,6.82640666]
[1754194561614,2.95738626,160.23,160.22,3.4]
[1754194562018,2.95738626,160.23,160.21,3.42640666]
[1754194562217,3.25,160.24,160.22,6.96640666]
[1754194562521,2.96500473,160.23,160.22,3.42640666]
[1754194563020,2.96500473,160.23,160.22,6.96640666]
[1754194564519,2.96500473,160.23,160.22,3.54]
[1754194565314,2.96500473,160.23,160.2,3.54]
[1754194565519,2.96500473,160.22,160.21,6.96640666]
[1754194565915,6.48500473,160.22,160.2,3.54]
[1754194566115,6.48500473,160.21,160.2,3.54]
[1754194567020,2.96500473,160.21,160.2,3.54]
[1754194570225,2.96500473,160.21,160.2,9.7829]
[1754194572322,3.52,160.23,160.21,3.54]
[1754194572526,3.52,160.23,160.21,3.42640666]
[1754194572527,2.95769786,160.22,160.21,3.42640666]
[1754194572727,2.95769786,160.22,160.21,13.20890666]
[1754194572929,2.95769786,160.22,160.21,6.96640666]
[1754194573225,6.47769786,160.22,160.21,6.96640666]
[1754194573924,3.52,160.21,160.2,3.54]
[1754194574127,2.95769786,160.21,160.2,3.54]
[1754194575629,6.47769786,160.21,160.2,3.54]
[1754194575828,6.4780491,160.21,160.2,3.54]
[1754194576726,2.9580491,160.21,160.2,3.54]
[1754194581923,6.4780491,160.21,160.2,3.54]
[1754194582329,2.9580491,160.21,160.2,3.54]
[1754194583335,2.9580491,160.21,160.2,9.7829]
[1754194584423,2.9578274,160.21,160.2,6.2429]
[1754194585030,2.9578274,160.21,160.2,9.7829]
[1754194587127,6.4778274,160.21,160.2,3.54]
[1754194587832,6.4778274,160.21,160.2,9.7829]
[1754194588936,2.9578274,160.21,160.2,9.7829]
[1754194594735,6.4878274,160.21,160.2,9.7829]
[1754194597834,2.9578274,160.21,160.2,9.7829]
[1754194599828,6.4878274,160.21,160.2,9.7829]
[1754194602640,6.4878274,160.21,160.2,3.54]
[1754194613751,12.7305274,160.21,160.17,5.26071177]
[1754194614047,2.9578274,160.2,160.19,3.46]
[1754194614643,6.4878274,160.2,160.19,3.46]
[1754194615455,6.48552554,160.2,160.19,3.46]
[1754194618654,6.48552554,160.2,160.16,5.26071177]
[1754194618952,3.53,160.18,160.17,3.46]
[1754194622356,3.36,160.19,160.17,3.46]
[1754194622555,3.36,160.19,160.18,3.42]
[1754194622854,6.31637813,160.19,160.18,3.42]
[1754194626453,6.31637813,160.19,160.18,6.84640666]
[1754194626454,2.95637813,160.19,160.18,6.84640666]
[1754194627251,2.95637813,160.19,160.18,13.09010666]
[1754194632562,2.95637813,160.19,160.18,9.6637]
[1754194632862,2.95637813,160.19,160.18,13.09010666]
[1754194633264,6.31637813,160.19,160.18,13.09010666]
[1754194634360,6.31637813,160.19,160.18,6.84640666]
[1754194638561,12.55967813,160.19,160.18,3.42]
[1754194638764,12.55967813,160.19,160.12,6.94121871]
[1754194638765,3.36,160.18,160.13,3.42]
[1754194639064,3.36,160.16,160.13,3.42]
[1754194639960,3.36,160.17,160.15,3.42]
[1754194640267,2.96180394,160.16,160.15,3.42]
[1754194643968,3.36,160.21,160.17,6.2441]
[1754194644168,2.95968468,160.2,160.18,3.42640666]
[1754194644369,3.36,160.21,160.19,3.42]
[1754194644572,3.36,160.19,160.14,5.26071177]
[1754194644764,2.9596003,160.18,160.17,3.42640666]
[1754194645165,2.9596003,160.18,160.17,6.84640666]
[1754194647672,9.603,160.2,160.18,3.42]
[1754194647868,2.95978249,160.19,160.18,3.42]
[1754194653475,3.33,160.23,160.18,3.42]
[1754194653676,2.96060965,160.22,160.21,6.78640666]
[1754194654378,2.96060965,160.22,160.21,13.02890666]
[1754194654675,82.96439891,160.26,160.22,3.36]
[1754194654976,82.96439891,160.26,160.19,5.26071177]
[1754194654977,3.33,160.26,160.25,6.78640666]
[1754194655873,3.33,160.28,160.25,6.78640666]
[1754194656175,3.33,160.27,160.26,3.36]
[1754194656367,9.5705,160.27,160.26,3.36]
[1754194658071,113.72,160.29,160.19,5.26071177]
[1754194658372,3.33,160.27,160.23,3.42640666]
[1754194658677,3.33,160.27,160.23,6.78640666]
[1754194659271,3.33,160.25,160.23,6.78640666]
[1754194660178,9.5711,160.25,160.23,6.78640666]
[1754194660375,3.33,160.24,160.23,6.78640666]
[1754194664874,6.2403,160.27,160.24,3.36]
[1754194664875,3.33,160.25,160.24,3.36]
[1754194665377,3.33,160.25,160.24,3.42640666]
[1754194665578,3.33,160.25,160.24,6.78640666]
[1754194670183,3.33,160.25,160.24,3.36]
[1754194674683,6.2406,160.26,160.24,6.78640666]
[1754194674684,3.33,160.26,160.24,6.78640666]
[1754194674885,3.33,160.26,160.25,3.36]
[1754194675682,3.33,160.27,160.25,3.36]
[1754194675887,3.33,160.28,160.25,3.36]
[1754194677786,123.2894,160.29,160.27,3.36]
[1754194680589,117.05,160.29,160.27,3.36]
[1754194681486,6.97054371,160.37,160.29,3.46]
[1754194681683,116.99,160.36,160.33,3.46]
[1754194681885,3.33,160.35,160.33,3.46]
[1754194682189,3.33,160.34,160.33,3.46]
[1754194682687,113.66,160.36,160.33,3.46]
[1754194682887,116.99,160.36,160.34,3.42640666]
[1754194683090,116.99,160.36,160.35,3.46]
[1754194683490,113.66,160.36,160.35,3.46]
[1754194683990,3.33,160.38,160.35,3.46]
[1754194690087,116.99,160.39,160.35,3.46]
[1754194690486,3.33,160.38,160.35,3.46]
[1754194700498,3.33,160.38,160.35,8.80786026]
[1754194700696,3.33,160.37,160.36,3.46]
[1754194701094,113.66,160.39,160.36,3.46]
[1754194701293,3.33,160.38,160.36,3.46]
[1754194703098,116.99,160.39,160.37,3.46]
[1754194703294,113.66,160.39,160.37,3.46]
[1754194703689,3.33,160.4,160.37,3.46]
[1754194703889,3.33,160.41,160.37,3.46]
[1754194704294,116.91,160.42,160.39,3.46]
[1754194704894,116.91,160.42,160.41,3.46]
[1754194705496,113.58,160.42,160.41,3.46]
[1754194706803,113.58,160.42,160.41,6.88021736]
[1754194708097,113.58,160.42,160.41,13.11501736]
[1754194708406,113.58,160.42,160.41,6.88021736]
[1754194709504,3.33,160.43,160.42,3.46]
[1754194714207,113.54,160.45,160.42,3.46]
[1754194714410,116.94,160.45,160.44,3.23]
[1754194715096,113.54,160.45,160.44,3.23]
[1754194716506,3.4,160.46,160.44,3.23]
[1754194716812,116.94,160.48,160.46,3.23]
[1754194717106,3.4,160.49,160.48,3.23]
[1754194718299,113.54,160.51,160.48,3.23]
[1754194718500,3.4,160.5,160.49,6.65021736]
[1754194719007,3.4,160.5,160.49,3.23]
[1754194720305,116.94,160.51,160.49,3.23]
[1754194720502,116.94,160.51,160.49,9.4616]
[1754194720704,113.54,160.51,160.5,3.23]
[1754194721202,3.4,160.53,160.5,9.4613]
[1754194721411,3.4,160.53,160.51,3.23]
[1754194723010,113.5,160.54,160.52,3.23]
[1754194723214,116.9,160.54,160.52,3.23]
[1754194723801,113.5,160.54,160.52,3.23]
[1754194724004,116.9,160.54,160.52,3.23]
[1754194725405,113.5,160.54,160.52,3.23]
[1754194725709,3.4,160.53,160.52,3.23]
[1754194729516,113.5,160.54,160.52,3.23]
[1754194729712,116.9,160.54,160.52,3.23]
[1754194730015,113.5,160.54,160.52,3.23]
[1754194730313,116.9,160.54,160.52,3.23]
[1754194730613,3.4,160.54,160.52,3.23]
[1754194731312,3.4,160.54,160.51,3.23]
[1754194732316,3.4,160.54,160.51,6.2308]
[1754194732515,3.4,160.54,160.52,3.23]
[1754194735008,3.4,160.53,160.52,3.23]
[1754194736117,3.4,160.53,160.5,5.3388358]
[1754194736310,3.4,160.51,160.47,3.23]
[1754194736710,3.4,160.51,160.47,6.2322]
[1754194736912,3.4,160.51,160.48,3.23]
[1754194737616,3.4,160.5,160.46,3.23]
[1754194737815,3.4,160.5,160.47,3.23]
[1754194738320,3.4,160.5,160.48,3.23]
[1754194738521,3.4,160.5,160.49,3.23]
[1754194740916,3.4,160.49,160.42,3.23]
[1754194741108,3.4,160.49,160.47,5.3388358]
[1754194741313,113.56,160.53,160.51,3.23]
[1754194742921,113.56,160.53,160.51,9.4608]
[1754194743120,113.56,160.53,160.52,3.31]
[1754194743316,117.08,160.53,160.52,3.31]
[1754194744418,113.56,160.53,160.52,3.31]
[1754194744718,3.52,160.57,160.51,5.3388358]
[1754194744918,3.52,160.56,160.52,3.31]
[1754194745420,3.52,160.56,160.53,3.31]
[1754194746216,3.52,160.56,160.53,9.5399]
[1754194746522,3.52,160.56,160.54,3.31]
[1754194747125,117.18,160.57,160.55,3.31]
[1754194747625,113.66,160.57,160.55,3.31]
[1754194748127,3.52,160.66,160.56,3.31]
[1754194748323,3.52,160.66,160.61,3.31]
[1754194748324,117.34,160.66,160.61,3.31]
[1754194748520,3.52,160.65,160.6,11.5658358]
[1754194748825,3.52,160.65,160.59,3.31]
[1754194750027,9.7456,160.65,160.59,3.31]
[1754194750326,3.52,160.64,160.59,3.31]
[1754194751024,4.60365641,160.7,160.62,5.3388358]
[1754194751218,3.52,160.69,160.65,3.31]
[1754194751524,117.44,160.69,160.65,3.31]
[1754194752228,117.44,160.69,160.65,6.2251]
[1754194752427,117.44,160.69,160.66,3.31]
[1754194753423,113.92,160.69,160.64,11.5646358]
[1754194753626,3.52,160.68,160.67,3.31]
[1754194755928,117.44,160.69,160.68,3.31]
[1754194758525,113.92,160.69,160.68,3.31]
[1754194759132,117.44,160.69,160.68,3.31]
[1754194761132,3.52,160.68,160.62,5.3388358]
[1754194761333,3.52,160.68,160.63,3.31]
[1754194762330,6.225,160.67,160.63,3.31]
[1754194762526,3.52,160.65,160.62,8.6488358]
[1754194762837,3.52,160.65,160.62,3.31]
[1754194763637,9.7455,160.65,160.62,3.31]
[1754194763928,3.52,160.63,160.62,3.31]
[1754194764336,3.52,160.62,160.61,3.31]
[1754194765731,3.52,160.63,160.61,3.31]
[1754194767430,6.2254,160.66,160.61,3.31]
[1754194767630,113.9,160.64,160.61,3.31]
[1754194767838,117.42,160.64,160.61,3.31]
[1754194769433,3.52,160.63,160.61,3.31]
[1754194771739,3.19,160.67,160.61,5.3388358]
[1754194771944,113.92,160.66,160.64,3.36]
[1754194772442,117.13,160.69,160.65,6.2255]
[1754194772739,3.19,160.71,160.66,9.5848]
[1754194773044,117.17,160.7,160.67,3.36]
[1754194773245,3.19,160.69,160.67,3.36]
[1754194775144,117.17,160.7,160.67,3.36]
[1754194775641,113.98,160.7,160.67,9.5846]
[1754194775945,113.98,160.7,160.68,3.36]
[1754194776640,113.98,160.7,160.69,3.36]
[1754194777941,113.98,160.7,160.69,14.9227358]
[1754194778143,113.98,160.7,160.69,8.6988358]
[1754194778734,421.93,160.74,160.69,5.3388358]
[1754194778935,113.94,160.73,160.72,3.36]
[1754194779146,117.13,160.73,160.72,3.36]
[1754194781849,113.94,160.73,160.72,3.36]
[1754194784153,117.13,160.73,160.72,3.36]
[1754194786347,123.3524,160.73,160.69,5.3388358]
[1754194786554,3.19,160.72,160.67,5.3388358]
[1754194786756,3.19,160.72,160.68,3.36]
[1754194786943,3.19,160.71,160.68,6.2243]
[1754194787150,3.19,160.71,160.69,3.36]
[1754194790558,3.19,160.71,160.7,3.36]
[1754194792256,3.19,160.71,160.68,6.2243]
[1754194792257,3.19,160.71,160.67,3.36]
[1754194792458,113.82,160.7,160.67,3.36]
[1754194792760,3.19,160.69,160.67,3.36]
[1754194794961,117.01,160.7,160.67,3.36]
[1754194796261,117.01,160.7,160.67,9.5846]
[1754194796555,117.01,160.7,160.68,3.36]
[1754194798362,113.82,160.7,160.68,3.36]
[1754194798660,3.19,160.72,160.68,3.36]
[1754194798860,116.97,160.72,160.68,3.36]
[1754194799755,116.97,160.72,160.7,6.2235]
[1754194800058,116.97,160.72,160.71,3.36]
[1754194800059,113.78,160.72,160.71,3.36]
[1754194800558,113.78,160.72,160.71,9.5831]
[1754194800763,113.78,160.72,160.71,3.36]
[1754194800964,3.19,160.73,160.71,3.36]
[1754194801667,6.2212,160.76,160.7,3.33]
[1754194801862,3.32,160.75,160.7,3.33]
[1754194802860,3.32,160.75,160.71,6.2228]
[1754194803066,3.32,160.75,160.73,3.33]
[1754194803660,113.76,160.76,160.69,5.3388358]
[1754194803661,113.76,160.76,160.7,3.33]
[1754194803860,117.08,160.76,160.7,3.33]
[1754194804664,117.08,160.76,160.72,3.33]
[1754194805267,113.76,160.76,160.73,5.3388358]
[1754194805471,3.32,160.78,160.74,3.33]
[1754194806561,3.32,160.77,160.76,3.33]
[1754194808561,113.78,160.79,160.76,3.33]
[1754194808769,3.32,160.78,160.76,3.33]
[1754194808965,113.78,160.79,160.77,3.33]
[1754194809470,113.78,160.79,160.77,5.3388358]
[1754194809765,3.32,160.81,160.78,3.33]
[1754194810167,3.32,160.81,160.78,6.2204]
[1754194810364,3.32,160.81,160.8,3.33]
[1754194814672,3.32,160.81,160.78,3.33]
[1754194814865,3.32,160.8,160.74,3.33]
[1754194815063,113.76,160.79,160.75,3.33]
[1754194815267,3.32,160.77,160.75,3.33]
[1754194815762,3.32,160.77,160.75,9.5516]
[1754194815967,3.32,160.78,160.76,3.33]
[1754194816867,3.32,160.78,160.77,3.33]
[1754194818570,3.32,160.77,160.75,3.33]
[1754194819076,113.78,160.78,160.75,3.33]
[1754194819267,3.32,160.76,160.75,3.33]
[1754194820369,3.32,160.76,160.69,3.33]
[1754194820567,3.32,160.74,160.7,3.33]
[1754194820966,113.72,160.75,160.72,3.33]
[1754194821174,117.04,160.75,160.72,3.33]
[1754194823877,123.2617,160.75,160.72,3.33]
[1754194824073,3.32,160.74,160.72,3.33]
[1754194825685,3.32,160.73,160.72,3.33]
[1754194827587,119.9419,160.75,160.67,5.3388358]
[1754194827588,3.32,160.74,160.71,3.33]
[1754194827989,6.2223,160.74,160.71,3.33]
[1754194828194,3.32,160.72,160.71,3.33]
[1754194828384,117.1,160.72,160.71,3.33]
[1754194832785,113.78,160.72,160.71,3.33]
[1754194833086,6.2221,160.74,160.71,3.33]
[1754194833087,113.74,160.74,160.71,3.33]
[1754194833291,113.74,160.74,160.71,9.5529]
[1754194833592,113.74,160.74,160.72,3.3]
[1754194833980,3.23,160.73,160.7,6.2234]
[1754194834296,3.23,160.73,160.67,5.3388358]